[Event "Open Cappelle-la-Grande"]
[Date "2026.02.26"]
[White "Bournel, Antoine"]
[Black "Real, Thibault"]
[WhiteElo "2434"]
[BlackElo "2243"]
[Round "9.9.10"]
[Result "1-0"]
[TimeControl "40/5400+30:1800+30"]

d4 {[%clk 1:30:59]} Nf6 {[%clk 1:28:39]} c4 {[%clk 1:31:21]} c5 {[%clk 1:29:04]}
d5 {[%clk 1:31:18]} b5 {[%clk 1:29:25]} cxb5 {[%clk 1:31:25]} a6 {[%clk
1:29:49]} bxa6 {[%clk 1:30:03]} e6 {[%clk 1:30:11]} dxe6 {[%clk 1:19:06]} fxe6
{[%clk 1:30:02]} Nc3 {[%clk 1:07:50]} d5 {[%clk 1:28:57]} g3 {[%clk 1:08:12]}
Be7 {[%clk 1:19:16]} Bg2 {[%clk 1:06:20]} Rxa6 {[%clk 1:18:19]} Nf3 {[%clk
0:59:07]} d4 {[%clk 1:09:42]} Nb1 {[%clk 0:58:44]} Bb7 {[%clk 1:08:44]} O-O
{[%clk 0:58:35]} Nbd7 {[%clk 1:07:22]} e3 {[%clk 0:42:57]} Qa8 {[%clk 1:05:24]}
exd4 {[%clk 0:35:17]} cxd4 {[%clk 1:03:12]} Nbd2 {[%clk 0:31:31]} O-O {[%clk
0:54:52]} Nh4 {[%clk 0:27:10]} Bxg2 {[%clk 0:33:05]} Nxg2 {[%clk 0:27:36]} e5
{[%clk 0:28:31]} Nc4 {[%clk 0:23:22]} Ne4 {[%clk 0:21:15]} Qe2 {[%clk 0:20:01]}
Raf6 {[%clk 0:18:14]} f4 {[%clk 0:12:59]} Bc5 {[%clk 0:09:56]} Qf3 {[%clk
0:13:26]} exf4 {[%clk 0:09:37]} gxf4 {[%clk 0:10:32]} Ra6 {[%clk 0:06:50]} b4
{[%clk 0:08:57]} Bxb4 {[%clk 0:06:58]} Qb3 {[%clk 0:08:46]} Ndc5 {[%clk
0:01:31]} Qxb4 {[%clk 0:09:14]} Ra4 {[%clk 0:01:34]} Qb5 {[%clk 0:09:28]} Rb8
{[%clk 0:01:50]} Nb6 {[%clk 0:09:54]} Qb7 {[%clk 0:00:36]} Rb1 {[%clk 0:09:46]}
Rxa2 {[%clk 0:00:40]} Qc4+ {[%clk 0:06:59]} Qf7 {[%clk 0:01:09]} Qxd4 {[%clk
0:07:23]} Ra6 {[%clk 0:00:49]} Be3 {[%clk 0:07:52]} h6 {[%clk 0:00:33]} Nc4
{[%clk 0:07:20]} Rxb1 {[%clk 0:00:34]} Rxb1 {[%clk 0:07:47]} Ra2 {[%clk
0:00:39]} Ne5 {[%clk 0:06:10]} Qe6 {[%clk 0:00:45]} Qc4 {[%clk 0:02:52]} Qxc4
{[%clk 0:00:49]} Nxc4 {[%clk 0:03:21]} Nd3 {[%clk 0:00:33]} Rd1 {[%clk 0:03:24]}
Ndc5 {[%clk 0:00:36]} Bxc5 {[%clk 0:02:03]} Nxc5 {[%clk 0:01:03]} Ne5 {[%clk
0:02:14]} Kh7 {[%clk 0:00:53]} Re1 {[%clk 0:01:30]} Ne6 {[%clk 0:01:06]} Nf3
{[%clk 0:00:54]} Nc5 {[%clk 0:00:41]} Ne5 {[%clk 0:24:41]} Ne6 {[%clk 0:30:35]}
Re4 {[%clk 0:23:59]} Nc5 {[%clk 0:29:49]} Rc4 {[%clk 0:23:32]} Nb3 {[%clk
0:25:38]} h4 {[%clk 0:21:17]} Re2 {[%clk 0:25:09]} h5 {[%clk 0:20:07]} Nd2
{[%clk 0:25:28]} Rc8 {[%clk 0:19:48]}

[Variant "Standard"]
[Site "Europe Echecs"]

[Event "Open Cappelle-la-Grande"]
[Date "2026.02.26"]
[White "Arcelin, Gael"]
[Black "Bassini, Emile"]
[WhiteElo "2288"]
[BlackElo "2409"]
[Round "9.9.11"]
[Result "0-1"]
[TimeControl "40/5400+30:1800+30"]

d4 {[%clk 1:30:58]} Nf6 {[%clk 1:30:52]} c4 {[%clk 1:31:27]} g6 {[%clk 1:31:15]}
Nc3 {[%clk 1:31:54]} Bg7 {[%clk 1:31:41]} e4 {[%clk 1:32:18]} d6 {[%clk
1:32:08]} Nf3 {[%clk 1:32:28]} O-O {[%clk 1:32:20]} Be2 {[%clk 1:32:56]} Na6
{[%clk 1:32:14]} O-O {[%clk 1:30:24]} e5 {[%clk 1:32:37]} Re1 {[%clk 1:30:32]}
Bg4 {[%clk 1:30:09]} Be3 {[%clk 1:30:30]} Qe8 {[%clk 1:29:11]} dxe5 {[%clk
1:14:30]} dxe5 {[%clk 1:26:09]} Qb3 {[%clk 1:09:47]} Bxf3 {[%clk 1:24:15]} Bxf3
{[%clk 1:08:55]} Qc8 {[%clk 1:20:26]} Nd5 {[%clk 0:56:40]} Re8 {[%clk 1:19:31]}
Bg5 {[%clk 0:43:59]} Nc5 {[%clk 1:19:12]} Qa3 {[%clk 0:43:48]} Nxd5 {[%clk
1:19:35]} cxd5 {[%clk 0:43:37]} Bf8 {[%clk 1:19:45]} Qe3 {[%clk 0:37:11]} a5
{[%clk 1:15:17]} Rac1 {[%clk 0:37:15]} b6 {[%clk 1:15:18]} h3 {[%clk 0:25:52]}
Qd7 {[%clk 1:14:35]} Red1 {[%clk 0:22:49]} Qd6 {[%clk 0:54:52]} Qd2 {[%clk
0:20:03]} f6 {[%clk 0:51:52]} Be3 {[%clk 0:20:27]} Qd7 {[%clk 0:52:12]} Qc2
{[%clk 0:19:23]} Bd6 {[%clk 0:50:38]} Bg4 {[%clk 0:17:22]} Qe7 {[%clk 0:50:10]}
Qb1 {[%clk 0:11:45]} Kg7 {[%clk 0:47:35]} Rc3 {[%clk 0:11:24]} Rf8 {[%clk
0:47:02]} Rdc1 {[%clk 0:04:01]} Qf7 {[%clk 0:44:57]} Bxc5 {[%clk 0:02:42]} Bxc5
{[%clk 0:43:48]} Be6 {[%clk 0:01:59]} Qe7 {[%clk 0:44:17]} Qc2 {[%clk 0:01:43]}
Ra7 {[%clk 0:41:47]} Rf3 {[%clk 0:01:40]} a4 {[%clk 0:41:44]} Qc4 {[%clk
0:01:31]} Bd4 {[%clk 0:39:01]} Rc2 {[%clk 0:01:53]} Rb8 {[%clk 0:38:05]} Qb5
{[%clk 0:01:18]} c5 {[%clk 0:38:05]} Bg4 {[%clk 0:00:37]} Qe8 {[%clk 0:35:02]}
Qe2 {[%clk 0:00:37]} b5 {[%clk 0:34:12]} h4 {[%clk 0:01:05]} b4 {[%clk 0:33:41]}
b3 {[%clk 0:00:39]} axb3 {[%clk 0:32:18]} Rxb3 {[%clk 0:00:56]} Qb5 {[%clk
0:31:34]} Rb1 {[%clk 0:00:40]} Qb6 {[%clk 0:28:31]} h5 {[%clk 0:13:50]} Qd8
{[%clk 0:29:16]} Rb3 {[%clk 0:12:52]} Rba8 {[%clk 0:28:46]} Be6 {[%clk 0:08:42]}
Qe8 {[%clk 0:15:40]} Rg3 {[%clk 0:06:51]} Ra3 {[%clk 0:14:48]} Rxa3 {[%clk
0:06:17]} Rxa3 {[%clk 0:15:16]} Qg4 {[%clk 0:05:47]} Ra6 {[%clk 0:14:14]} Kh2
{[%clk 0:05:49]} Kf8 {[%clk 0:12:45]} hxg6 {[%clk 0:02:45]} hxg6 {[%clk
0:10:56]} Qh3 {[%clk 0:02:59]} Kg7 {[%clk 0:10:37]} Kg1 {[%clk 0:01:27]} Qd8
{[%clk 0:05:32]} Qg4 {[%clk 0:01:35]} Qh8 {[%clk 0:05:07]} Qh3 {[%clk 0:01:13]}
Qa8 {[%clk 0:03:40]} Qb3 {[%clk 0:00:35]} Ra3 {[%clk 0:03:26]} Qc4 {[%clk
0:01:04]} b3 {[%clk 0:03:47]} axb3 {[%clk 0:01:24]} Ra1+ {[%clk 0:04:16]} Rc1
{[%clk 0:00:53]} Qa2 {[%clk 0:03:51]} Rxa1 {[%clk 0:01:22]} Qxf2+ {[%clk
0:03:44]} Kh1 {[%clk 0:00:47]} Bxa1 {[%clk 0:04:13]} d6 {[%clk 0:00:36]} Bd4
{[%clk 0:03:48]} Kh2 {[%clk 0:00:33]} Be3 {[%clk 0:02:35]} Qc3 {[%clk 0:00:32]}
Bf4+ {[%clk 0:02:24]} Kh3 {[%clk 0:01:01]} Qg1 {[%clk 0:02:44]}

[Variant "Standard"]
[Site "Europe Echecs"]

[Event "Open Cappelle-la-Grande"]
[Date "2026.02.26"]
[White "Moksh Amit Doshi"]
[Black "Goossens, Hanne"]
[WhiteElo "2354"]
[BlackElo "2164"]
[Round "9.9.12"]
[Result "1-0"]
[TimeControl "40/5400+30:1800+30"]

Nf3 {[%clk 1:29:36]} Nf6 {[%clk 1:30:51]} c4 {[%clk 1:29:52]} c5 {[%clk
1:31:04]} d4 {[%clk 1:28:01]} cxd4 {[%clk 1:25:34]} Nxd4 {[%clk 1:27:55]} Nc6
{[%clk 1:23:04]} Nc3 {[%clk 1:26:43]} d5 {[%clk 1:22:24]} cxd5 {[%clk 1:20:07]}
Nxd5 {[%clk 1:22:31]} Nxc6 {[%clk 1:20:11]} bxc6 {[%clk 1:22:45]} Bd2 {[%clk
1:20:31]} e5 {[%clk 1:22:15]} Qa4 {[%clk 1:15:23]} Bd7 {[%clk 1:08:07]} e4
{[%clk 1:13:54]} Nxc3 {[%clk 1:04:23]} Bxc3 {[%clk 1:14:16]} Bd6 {[%clk
1:03:49]} Rd1 {[%clk 1:12:27]} Qe7 {[%clk 1:02:24]} Rd2 {[%clk 1:08:42]} Bc5
{[%clk 0:58:26]} Ba6 {[%clk 1:07:13]} Rb8 {[%clk 0:55:01]} Qa5 {[%clk 1:03:49]}
Rb4 {[%clk 0:45:56]} O-O {[%clk 1:02:11]} Rxe4 {[%clk 0:44:42]} Qc7 {[%clk
0:55:48]} Qd8 {[%clk 0:29:46]} Qb7 {[%clk 0:51:50]} Bd4 {[%clk 0:24:58]} Bxd4
{[%clk 0:51:23]} exd4 {[%clk 0:24:10]} Qxa7 {[%clk 0:48:15]} Qa5 {[%clk
0:23:18]} b4 {[%clk 0:42:12]} Qxb4 {[%clk 0:21:57]} Rdd1 {[%clk 0:33:33]} Qa5
{[%clk 0:20:02]} Qb8+ {[%clk 0:24:38]} Qd8 {[%clk 0:20:20]} Qb1 {[%clk 0:24:44]}
Re7 {[%clk 0:08:33]} Rxd4 {[%clk 0:24:12]} Qc7 {[%clk 0:07:48]} Re1 {[%clk
0:22:30]} Be6 {[%clk 0:06:41]} Bc4 {[%clk 0:20:35]} O-O {[%clk 0:05:50]} Bxe6
{[%clk 0:21:00]} Rxe6 {[%clk 0:06:09]} Rxe6 {[%clk 0:21:22]} fxe6 {[%clk
0:06:35]} Qe4 {[%clk 0:20:46]} e5 {[%clk 0:06:21]} Rd1 {[%clk 0:20:36]} Qa7
{[%clk 0:04:34]} Qe2 {[%clk 0:19:08]} Qc5 {[%clk 0:04:25]} g3 {[%clk 0:19:09]}
h6 {[%clk 0:03:14]} Rd2 {[%clk 0:19:10]} Qb4 {[%clk 0:01:35]} Rc2 {[%clk
0:17:41]} Rf6 {[%clk 0:00:50]} Kg2 {[%clk 0:16:09]} Kf8 {[%clk 0:00:59]} Qxe5
{[%clk 0:16:01]} Qb1 {[%clk 0:00:44]} Rb2 {[%clk 0:16:05]}

[Variant "Standard"]
[Site "Europe Echecs"]

[Event "Open Cappelle-la-Grande"]
[Date "2026.02.26"]
[White "Levin, Guy"]
[Black "Greissler, Raphael"]
[WhiteElo "2440"]
[BlackElo "2012"]
[Round "9.9.13"]
[Result "1-0"]
[TimeControl "40/5400+30:1800+30"]

d4 {[%clk 1:30:49]} d5 {[%clk 1:30:29]} Nf3 {[%clk 1:31:13]} Nf6 {[%clk
1:30:35]} Bf4 {[%clk 1:31:39]} c5 {[%clk 1:30:32]} e3 {[%clk 1:32:03]} Nc6
{[%clk 1:30:47]} Be2 {[%clk 1:32:29]} e6 {[%clk 1:27:55]} O-O {[%clk 1:32:50]}
Bd6 {[%clk 1:27:55]} dxc5 {[%clk 1:33:14]} Bxc5 {[%clk 1:27:15]} c4 {[%clk
1:33:38]} O-O {[%clk 1:26:17]} cxd5 {[%clk 1:34:04]} Nxd5 {[%clk 1:24:18]} Bg3
{[%clk 1:34:27]} Qb6 {[%clk 1:20:13]} Qc2 {[%clk 1:34:17]} Ncb4 {[%clk 1:18:53]}
Qb3 {[%clk 1:31:26]} a5 {[%clk 1:18:30]} Nc3 {[%clk 1:19:39]} Nxc3 {[%clk
1:14:06]} bxc3 {[%clk 1:18:46]} Nd5 {[%clk 1:13:54]} Qc2 {[%clk 1:18:36]} Bd7
{[%clk 1:11:50]} Rab1 {[%clk 1:14:41]} Qa7 {[%clk 1:12:12]} Ng5 {[%clk 1:09:06]}
g6 {[%clk 1:10:44]} c4 {[%clk 1:06:33]} Nb4 {[%clk 1:07:31]} Qb2 {[%clk
0:58:14]} f6 {[%clk 1:03:00]} Ne4 {[%clk 0:56:29]} Be7 {[%clk 1:00:32]} a3
{[%clk 0:49:18]} Bc6 {[%clk 1:00:55]} Nc3 {[%clk 0:48:35]} Na6 {[%clk 1:01:08]}
Nb5 {[%clk 0:49:00]} Qc5 {[%clk 0:59:49]} Rfc1 {[%clk 0:42:08]} Be4 {[%clk
0:58:54]} Ra1 {[%clk 0:41:50]} Qb6 {[%clk 0:51:10]} Qc3 {[%clk 0:36:25]} Rac8
{[%clk 0:48:20]} h4 {[%clk 0:33:05]} Rfd8 {[%clk 0:47:16]} Qe1 {[%clk 0:28:04]}
Nc5 {[%clk 0:45:56]} Rd1 {[%clk 0:28:06]} Nd3 {[%clk 0:42:16]} Qf1 {[%clk
0:28:09]} Nb2 {[%clk 0:34:15]} Rd4 {[%clk 0:25:11]} f5 {[%clk 0:33:14]} Ra2
{[%clk 0:23:21]} Na4 {[%clk 0:33:08]} Rad2 {[%clk 0:23:18]} Rxd4 {[%clk
0:30:57]} exd4 {[%clk 0:23:35]} Bc6 {[%clk 0:30:13]} c5 {[%clk 0:22:23]} Qd8
{[%clk 0:29:43]} Na7 {[%clk 0:22:30]} Ra8 {[%clk 0:29:24]} Nxc6 {[%clk 0:22:51]}
bxc6 {[%clk 0:29:46]} Qc1 {[%clk 0:20:51]} Bxh4 {[%clk 0:22:53]} Bxh4 {[%clk
0:19:32]} Qxh4 {[%clk 0:23:16]} Bd1 {[%clk 0:19:57]}

[Variant "Standard"]
[Site "Europe Echecs"]

[Event "Open Cappelle-la-Grande"]
[Date "2026.02.26"]
[White "Szczotka, Klara"]
[Black "Velten, Paul"]
[WhiteElo "2205"]
[BlackElo "2522"]
[Round "9.9.14"]
[Result "1-0"]
[TimeControl "40/5400+30:1800+30"]

d4 {[%clk 1:30:57]} Nf6 {[%clk 1:30:46]} c4 {[%clk 1:31:23]} g6 {[%clk 1:30:59]}
Nc3 {[%clk 1:31:48]} Bg7 {[%clk 1:30:47]} e4 {[%clk 1:31:54]} d6 {[%clk
1:31:06]} Be2 {[%clk 1:31:57]} Na6 {[%clk 1:25:44]} Be3 {[%clk 1:31:41]} c6
{[%clk 1:25:20]} Qd2 {[%clk 1:28:32]} Nc7 {[%clk 1:22:40]} f3 {[%clk 1:25:20]}
Rb8 {[%clk 1:21:14]} g4 {[%clk 1:18:10]} b5 {[%clk 1:16:42]} cxb5 {[%clk
1:11:38]} cxb5 {[%clk 1:16:27]} h4 {[%clk 1:09:34]} h5 {[%clk 1:15:16]} g5
{[%clk 1:09:34]} Nd7 {[%clk 1:15:34]} f4 {[%clk 1:05:10]} b4 {[%clk 1:02:43]}
Nd1 {[%clk 1:05:01]} O-O {[%clk 1:01:14]} Bf3 {[%clk 1:03:10]} b3 {[%clk
0:54:28]} Ne2 {[%clk 0:50:26]} Ba6 {[%clk 0:48:11]} O-O {[%clk 0:46:30]} bxa2
{[%clk 0:45:54]} Rxa2 {[%clk 0:46:18]} Rb3 {[%clk 0:46:05]} Ndc3 {[%clk
0:36:04]} Qb8 {[%clk 0:42:11]} Rfa1 {[%clk 0:30:17]} Bc4 {[%clk 0:40:50]} Rxa7
{[%clk 0:27:36]} Rxb2 {[%clk 0:40:37]} Qc1 {[%clk 0:27:39]} Rc8 {[%clk 0:40:09]}
e5 {[%clk 0:21:37]} Nf8 {[%clk 0:38:03]} Ra8 {[%clk 0:10:58]} Nxa8 {[%clk
0:36:59]} Rxa8 {[%clk 0:11:21]} Qxa8 {[%clk 0:36:16]} Bxa8 {[%clk 0:10:50]} Rb3
{[%clk 0:36:27]} Nd5 {[%clk 0:09:48]} Bxd5 {[%clk 0:36:05]} Qxc8 {[%clk
0:09:56]} Bxa8 {[%clk 0:36:32]} Qxa8 {[%clk 0:08:51]} Rxe3 {[%clk 0:36:57]} Kf2
{[%clk 0:08:39]} Rh3 {[%clk 0:37:21]} Qe8 {[%clk 0:07:33]} dxe5 {[%clk 0:36:01]}
dxe5 {[%clk 0:06:48]} Rxh4 {[%clk 0:36:05]} Kg3 {[%clk 0:06:10]} Rh1 {[%clk
0:34:03]} Nd4 {[%clk 0:04:05]} Rg1+ {[%clk 0:33:28]} Kf2 {[%clk 0:01:56]} Rg4
{[%clk 0:33:39]} Ke3 {[%clk 0:01:51]} Rg3+ {[%clk 0:32:20]} Ke4 {[%clk 0:01:02]}
f5+ {[%clk 0:31:25]} Kd5 {[%clk 0:00:39]} Kh7 {[%clk 0:31:11]} Nc6 {[%clk
0:00:35]} e6+ {[%clk 0:30:24]} Kc5 {[%clk 0:00:33]} Rc3+ {[%clk 0:30:10]} Kb5
{[%clk 0:23:43]} Rb3+ {[%clk 0:55:58]} Ka6 {[%clk 0:20:12]} Ra3+ {[%clk
0:56:17]} Kb7 {[%clk 0:19:58]} Rb3+ {[%clk 0:56:29]} Kc7 {[%clk 0:18:49]} Rc3
{[%clk 0:55:44]} Qf7 {[%clk 0:17:43]} Rc1 {[%clk 0:53:37]} Kb7 {[%clk 0:16:42]}
Rb1+ {[%clk 0:54:00]} Ka6 {[%clk 0:16:28]} Ra1+ {[%clk 0:54:05]} Kb5 {[%clk
0:16:28]} Rb1+ {[%clk 0:54:32]} Ka4 {[%clk 0:16:13]} Ra1+ {[%clk 0:52:02]} Kb3
{[%clk 0:16:27]}

[Variant "Standard"]
[Site "Europe Echecs"]

[Event "Open Cappelle-la-Grande"]
[Date "2026.02.26"]
[White "Veiergang, Oscar"]
[Black "Degraeve, Remy"]
[WhiteElo "2193"]
[BlackElo "2448"]
[Round "9.9.15"]
[Result "0-1"]
[TimeControl "40/5400+30:1800+30"]

e4 {[%clk 1:30:56]} e5 {[%clk 1:30:52]} Bc4 {[%clk 1:31:02]} Nf6 {[%clk
1:31:12]} d3 {[%clk 1:31:22]} Bc5 {[%clk 1:29:40]} Nc3 {[%clk 1:31:43]} O-O
{[%clk 1:29:34]} f4 {[%clk 1:30:40]} exf4 {[%clk 1:29:58]} Bxf4 {[%clk 1:31:02]}
c6 {[%clk 1:29:20]} d4 {[%clk 1:30:07]} Bb4 {[%clk 1:29:27]} e5 {[%clk 1:30:02]}
d5 {[%clk 1:25:26]} Bd3 {[%clk 1:27:20]} Bg4 {[%clk 1:23:44]} Be2 {[%clk
1:27:37]} Bxc3+ {[%clk 1:16:09]} bxc3 {[%clk 1:27:56]} Bxe2 {[%clk 1:16:34]}
Nxe2 {[%clk 1:28:19]} Ne4 {[%clk 1:17:00]} O-O {[%clk 1:28:34]} f6 {[%clk
1:08:37]} exf6 {[%clk 1:28:13]} Qxf6 {[%clk 1:09:00]} Qd3 {[%clk 1:26:49]} Nd7
{[%clk 1:07:29]} c4 {[%clk 1:25:22]} Qe6 {[%clk 1:06:21]} cxd5 {[%clk 1:25:11]}
cxd5 {[%clk 1:06:45]} Ng3 {[%clk 1:12:08]} Rae8 {[%clk 0:47:01]} Rae1 {[%clk
1:11:43]} Qg6 {[%clk 0:47:24]} Nxe4 {[%clk 1:05:12]} Rxe4 {[%clk 0:47:21]} Rxe4
{[%clk 1:05:33]} Qxe4 {[%clk 0:47:43]} Qxe4 {[%clk 1:05:29]} dxe4 {[%clk
0:48:07]} g3 {[%clk 1:04:38]} Rc8 {[%clk 0:43:17]} Re1 {[%clk 1:04:34]} Nf6
{[%clk 0:42:49]} Re2 {[%clk 1:04:00]} Kf7 {[%clk 0:42:19]} Be5 {[%clk 1:00:51]}
Nd5 {[%clk 0:41:22]} Kf2 {[%clk 0:57:49]} b5 {[%clk 0:32:45]} Bd6 {[%clk
0:52:09]} Ke6 {[%clk 0:27:09]} Bc5 {[%clk 0:51:15]} e3+ {[%clk 0:27:36]} Kf3
{[%clk 0:51:38]} Rc7 {[%clk 0:28:02]} a4 {[%clk 0:50:49]} Rf7+ {[%clk 0:28:22]}
Kg2 {[%clk 0:51:05]} a6 {[%clk 0:28:36]} axb5 {[%clk 0:40:51]} axb5 {[%clk
0:29:01]} Ba3 {[%clk 0:41:13]} Kf5 {[%clk 0:25:13]} Kf3 {[%clk 0:41:31]} g5
{[%clk 0:25:36]} g4+ {[%clk 0:39:51]} Kg6+ {[%clk 0:26:02]} Kg3 {[%clk 0:40:15]}
Rf1 {[%clk 0:26:28]} Bd6 {[%clk 0:36:00]} h5 {[%clk 0:24:35]} gxh5+ {[%clk
0:33:14]} Kxh5 {[%clk 0:24:59]} Kg2 {[%clk 0:32:54]} Rd1 {[%clk 0:24:38]} Be5
{[%clk 0:31:58]} g4 {[%clk 0:24:32]} h3 {[%clk 0:30:11]} Rd2 {[%clk 0:24:23]}
hxg4+ {[%clk 0:30:23]} Kxg4 {[%clk 0:24:47]}

[Variant "Standard"]
[Site "Europe Echecs"]

[Event "Open Cappelle-la-Grande"]
[Date "2026.02.26"]
[White "Toktomushev, Teimur"]
[Black "Midy, Robin"]
[WhiteElo "2428"]
[BlackElo "2222"]
[Round "9.9.16"]
[Result "1-0"]
[TimeControl "40/5400+30:1800+30"]

d4 {[%clk 1:28:32]} d6 {[%clk 1:30:40]} e4 {[%clk 1:28:49]} Nf6 {[%clk 1:31:04]}
Bd3 {[%clk 1:29:01]} e5 {[%clk 1:31:18]} Nf3 {[%clk 1:29:11]} exd4 {[%clk
1:31:37]} Nxd4 {[%clk 1:29:26]} g6 {[%clk 1:31:47]} O-O {[%clk 1:29:43]} Bg7
{[%clk 1:32:08]} Bg5 {[%clk 1:29:57]} O-O {[%clk 1:31:54]} Nd2 {[%clk 1:30:00]}
h6 {[%clk 1:26:45]} Bh4 {[%clk 1:30:17]} c6 {[%clk 1:16:40]} c3 {[%clk 1:18:04]}
Nbd7 {[%clk 1:10:47]} f4 {[%clk 0:59:42]} Qc7 {[%clk 1:08:34]} Qf3 {[%clk
0:57:31]} Nc5 {[%clk 0:53:55]} Bc2 {[%clk 0:49:44]} Bg4 {[%clk 0:25:54]} Qg3
{[%clk 0:47:22]} Bd7 {[%clk 0:24:48]} b4 {[%clk 0:29:44]} Nh5 {[%clk 0:23:16]}
Qe3 {[%clk 0:26:05]} Ne6 {[%clk 0:21:40]} f5 {[%clk 0:24:37]} Nxd4 {[%clk
0:21:06]} cxd4 {[%clk 0:25:03]} g5 {[%clk 0:18:15]} f6 {[%clk 0:14:39]} Nxf6
{[%clk 0:16:05]} Qd3 {[%clk 0:04:05]} Rfe8 {[%clk 0:11:49]} Bg3 {[%clk 0:04:28]}
Bg4 {[%clk 0:04:19]} e5 {[%clk 0:01:52]} dxe5 {[%clk 0:04:01]} Rxf6 {[%clk
0:00:54]} Bxf6 {[%clk 0:03:39]} Qh7+ {[%clk 0:01:21]} Kf8 {[%clk 0:04:00]} Rf1
{[%clk 0:01:10]} Bg7 {[%clk 0:03:27]} Bg6 {[%clk 0:01:09]} Re7 {[%clk 0:00:34]}
Nc4 {[%clk 0:01:23]} Ke8 {[%clk 0:00:33]} Qxg7 {[%clk 0:01:36]} fxg6 {[%clk
0:00:35]} Qg8+ {[%clk 0:01:27]} Kd7 {[%clk 0:00:59]} Qxa8 {[%clk 0:01:53]} Be2
{[%clk 0:00:36]} Nxe5+ {[%clk 0:02:06]}